{"text_format":"1","workbook":"xlsx","n_sheets":10,"sheets":["platy obvyklé","AUTO","kacelář_laboratoř","kopírování","občerstvení","Stravování","Ubytování","překlady a tlumočení","Pracovní výkaz ","Celkové náklady"],"not_rendered":{"charts":0,"images":2,"macros":0,"external_links":0,"defined_names":1,"comments":1,"pivot_tables":0},"unopened":[],"bounds":{"document_bytes":16777216,"sheet_cells":100000,"rows_first":2000,"rows_last":500,"rows_between":2000,"halvings":0,"cell_chars":16384,"cell_head_chars":4096},"cells_cut":0,"cells_raw":0,"read":"whole","date_system":"1900"}

{"sheet":"platy obvyklé","index":0,"n_rows":54,"n_cols":3,"rows_kept":54,"cut":false,"hidden":false,"merged":[[4,0,5,0],[27,0,28,0]]}
[null,null,"Příloha č. 1"]
[]
["Obvyklé mzdy/platy  pro realizaci projektů v rámci OP VK na území Jihočeského kraje pro rok 2013"]
[]
["Pracovní pozice","Hrubý měsíční plat/mzda v Kč na 100% úvazek (40 hod/týden)","Hrubý hodinový plat/mzda       v Kč "]
[null,"horní hranice","horní hranice"]
["Manažer projektu (koordinátor projektu)",47279,295]
["Věcný manažer (manažer aktivity)",40548,253]
["Finanční manažer projektu",39170,245]
["Metodik",40023,250]
["Učitelé základních škol",29218,183]
["Učitelé všeobecně vzdělávacích předmětů - SŠ",31424,196]
["Učitelé odborných předmětů - SŠ",31491,197]
["Lektor",49025,306]
["Vědecko-pedagogičtí pracovníci",47012,294]
["ICT technik",37310,233]
["Psycholog",38135,238]
["Sociální pracovník",30840,193]
["Speciální pedagog",28032,175]
["Asistent pedagoga",18131,113]
["Ověřovatelé (hodnotitelé) výukových materiálů",28622,179]
["Odborní řešitelé",27639,173]
["Korektor výukových materiálů",23243,145]
[]
["Obvyklé mzdy/platy  pro realizaci projektů v rámci OP VK na území ČR pro rok 2013"]
["Individuální projekty ostatní (IPo)"]
[]
["Pracovní pozice","Hrubý měsíční plat/mzda v Kč na 100% úvazek (40 hod/týden)","Hrubý hodinový plat/mzda       v Kč "]
[null,"horní hranice","horní hranice"]
["pedagogičtí pracovníci VaV VŠ",37633,235]
["profesor VŠ",63103,394]
["docent VŠ",47828,299]
["odborný asistent VŠ",32565,204]
["asistent VŠ",25240,158]
["Manažer projektu (koordinátor projektu)",51451,322]
["Věcný manažer (manažer aktivity)",47604,298]
["Finanční manažer projektu",46501,291]
["Metodik",38789,242]
["Učitelé základních škol",31936,200]
["Učitelé všeobecně vzdělávacích předmětů - SŠ",37575,235]
["Učitelé odborných předmětů - SŠ",37649,235]
["Lektor",58160,364]
["Vědecko-pedagogičtí pracovníci",55760,349]
["ICT technik",42632,266]
["Psycholog",54010,338]
["Sociální pracovník",36260,227]
["Speciální pedagog",28800,180]
["Asistent pedagoga",17600,110]
["Ověřovatelé (hodnotitelé) výukových materiálů",30000,188]
["Odborní řešitelé",28000,175]
["Korektor výukových materiálů",28000,175]
[]
["Zdroj: "]
["Metodický dopis OP VK č. 4.4/2013"]

{"sheet":"AUTO","index":1,"n_rows":32,"n_cols":5,"rows_kept":32,"cut":false,"hidden":false,"merged":[[26,0,26,4],[25,0,25,1],[23,0,23,1],[31,0,31,1],[28,0,28,1],[27,2,27,4],[0,3,0,4],[5,0,5,1],[30,0,30,1],[5,2,5,4],[16,0,16,1],[18,0,18,4],[29,0,29,1],[27,0,27,1],[6,2,7,2],[6,3,7,3],[6,4,7,4],[17,0,17,4],[24,0,24,4]]}
[null,null,null,"Příloha č. 2"]
[]
["Kalkulace nákladů spojených s provozem služebních vozidel"]
[]
[null,null,null,null,"v Kč"]
[null,null,"pro rok 2013"]
[null,"Reg. značka vozidla","4C8 5555","3C1 7030","6C3 3264"]
["1. Spotřeba PHM a náklady na provoz vozidla","Zdroj pro kalkulaci"]
[]
["průměrná spotřeba v l/100 km","technický průkaz vozidla",12.05,6.45,7.4]
["průměrná cena PHM        Nat 95/1 litr ","z vyhlášky o průměrných cenách na příslušný rok",36.1,36.1,36.1]
["spotřeba PHM na 1 km","prům. spotřeba*průměrná cena/100",{"$f":"C11*C10/100","v":4.3500500000000004},{"$f":"D11*D10/100","v":2.3284500000000001},{"$f":"E11*E10/100","v":2.6714000000000002}]
["materiál a opravy/ 1 km","na 1 km z nákladů za uplynulý rok",{"$f":"C32","v":2.37},{"$f":"D32","v":1.19},{"$f":"E32","v":0}]
["celkem cena/1 km",null,{"$f":"SUM(C12:C13)","v":6.7200500000000005},{"$f":"SUM(D12:D13)","v":3.5184500000000001},{"$f":"SUM(E12:E13)","v":2.6714000000000002}]
["počet km",null,0,0,0]
[]
["CELKEM za spotřebu PHM",null,{"$f":"C14*C15","v":0},{"$f":"D14*D15","v":0},{"$f":"E14*E15","v":0}]
[]
["2. Náklady na řidiče"]
["počet hodin řidiče",null,0,0,0]
["mzda/1 hod","ze mzdové účtárny",0,0,0]
["cestovní náhrady",null,0,0,0]
[]
["CELKEM náklady za řidiče",null,{"$f":"SUM(C20*C21,C22)","v":0},{"$f":"SUM(D20*D21,D22)","v":0},{"$f":"SUM(E20*E21,E22)","v":0}]
[]
["CELKEM ",null,{"$f":"SUM(C17,C24)","v":0},{"$f":"SUM(D17,D24)","v":0},{"$f":"SUM(E17,E24)","v":0}]
[]
["Kalkulace materiálu a oprav",null,"pro rok 2013"]
[null,null,"4C8 5555","2C4 5555","3C1 7030"]
["náklady na materiál a opravy",null,79679,21214,0]
["počet ujetých km",null,33600,17900,0]
["náklady na 1 km",null,{"$f":"ROUND(C30/C31,2)","v":2.37},{"$f":"ROUND(D30/D31,2)","v":1.19},0]

{"sheet":"kacelář_laboratoř","index":2,"n_rows":48,"n_cols":5,"rows_kept":48,"cut":false,"hidden":false,"merged":[[25,3,25,4]]}
[null,null,null,null,"Příloha č. 3"]
[]
["Kalkulace nákladů využívané plochy v budovách JU pro rok 2013"]
[]
["Kancelář: 1m2 využívané plochy v budovách JU - základna - budova REKTORÁT"]
[null,"v Kč"]
[null,"náklady za rok 2012"]
["Voda",78081]
["Elektřina",752661]
["Teplo a chlad",139202]
["Úklid",265000]
["Pronájem a čištění rohoží",5000]
["Mytí oken",65000]
["Hygienické prostředky",60000]
["PCO",230000]
["A.S.A.",30000]
["Revize výtahů (4x ročně)",20000]
["Revize EPS a EZS (2x ročně)",30000]
["Revize SOZ (2x ročně)",10000]
["Revize vzduchotechnika a klimatizace (4x ročně)",47000]
["Revize hydrantů a has. Přístrojů (1x ročně)",5000]
["Revize dieselagregátu (1x ročně)",10000]
["SPH elektro (12 x ročně)",10000]
["Náklady spojené s provozem",90000]
["Ostatní náklady",70000]
["Roční osobní náklady pracovníků správy budov pro rektorát ",279832]
["CELKEM roční náklady",{"$f":"SUM(B8:B26)","v":2196776}]
["Plocha Rektorátu v m2",2203.38]
["náklady na 1 m2"]
["roční ",{"$f":"B27/B28","v":997.00278662781716}]
["měsíční",{"$f":"B30/12","v":83.083565552318092}]
["denní ",{"$f":"B30/252","v":3.9563602643960998}]
["hodinové ",{"$f":"B32/8","v":0.49454503304951247}]
[]
["Zasedací místnost"]
[null,"v Kč"]
["AV technika - pořizovací cena",{"$f":"1970922+9995","v":1980917}]
["životnost v létech",6]
["roční podíl",{"$f":"B37/B38","v":330152.83333333331}]
["měsíční podíl",{"$f":"B39/12","v":27512.736111111109}]
["denní podíl (průměrný počet dnů 30,41)",{"$f":"B40/30.41","v":904.72660674485724}]
["hodinový podíl",{"$f":"B41/8","v":113.09082584310715}]
[]
["Kalkulace nákladů spojených s využitím laboratorních přístrojů"]
[null,"v Kč"]
["Pořizovací cena přístroje",0]
["Životnost v hodinách",0.01]
["Náklady na 1 hodinu provozu",{"$f":"B46/B47","v":0}]

{"sheet":"kopírování","index":3,"n_rows":16,"n_cols":4,"rows_kept":16,"cut":false,"hidden":false,"merged":[]}
[null,null,null,"Příloha č. 4"]
[]
["Kalkulace nákladů spojených s tiskem a kopírováním dokumentů"]
[]
["základna: "," kopírovací stroj  Minolta bizhub C 203 "]
[null,null,null,"v Kč"]
["Pořizovací cena",null,null,79561.5]
["životnost stroje - počet kopií",null,null,1000000]
["Pořizovací náklady/1 kopie/1 strana","PC/životnost",null,{"$f":"D7/D8","v":7.9561499999999993E-2}]
["Platby na základě smlouvy č. 42415290 Minolta(toner a papír):",null,"čb kopie",0.44]
[null,null,"barevná kopie",1.85]
[]
["Kalkulovaná cena 1 strany","A4","čb kopie",{"$f":"SUM(D9,D10)","v":0.51956150000000001}]
[null,"A4","barevná kopie",{"$f":"SUM(D9,D11)","v":1.9295615000000002}]
[null,"A3","čb kopie",{"$f":"D13*2","v":1.039123}]
[null,"A3","barevná kopie",{"$f":"D14*2","v":3.8591230000000003}]

{"sheet":"občerstvení","index":4,"n_rows":15,"n_cols":3,"rows_kept":15,"cut":false,"hidden":false,"merged":[[4,0,4,1]]}
[null,null,"Příloha č. 5"]
[]
["Kalkulace nákladů spojených nákupem občerstvení"]
[]
["Na základě požadavku na zajištění občerstvení jsou ceny kalkulovány dle pravidel podílu potravin a ostatních druhů nákladů následovně:"]
[]
["Součást nákladů","Podíl v %"]
["Potraviny",59.28]
["Energie",4.3499999999999996]
["Osobní náklad",25.01]
["Odpisy",2.0299999999999998]
["DHM",0.4]
["Materiál všeobecný",3.19]
["Ostatní ",5.74]
["Celkem",{"$f":"SUM(B8:B14)","v":100}]

{"sheet":"Stravování","index":5,"n_rows":28,"n_cols":6,"rows_kept":28,"cut":false,"hidden":false,"merged":[[8,0,14,0],[19,0,21,0],[23,0,27,0]]}
[null,null,null,null,null,"Příloha č. 6"]
[]
["Kalkulace nákladů spojených nákupem stravovacích služeb"]
[]
["Ceník KaM za hotová jídla"]
[]
["Snídaně",null,31]
["Polévka",null,5]
["Oběd",1,48]
[null,2,52]
[null,3,56]
[null,4,48]
[null,5,52]
[null,6,56]
[null,7,56]
["Specialita",null,73]
["Pizza",null,73]
["Dieta",null,73]
["Večeře",null,56]
["Bageta",1,20]
[null,2,25]
[null,3,28]
["Minutka",null,65]
["Doplněk",1,3]
[null,2,5]
[null,3,7]
[null,4,9]
[null,5,12]

{"sheet":"Ubytování","index":6,"n_rows":18,"n_cols":6,"rows_kept":18,"cut":false,"hidden":false,"merged":[[5,2,5,3],[5,4,5,5],[11,2,11,3],[11,4,11,5],[11,0,11,1]]}
[null,null,null,null,null,"Příloha č. 7"]
[]
["Kalkulace nákladů spojených s ubytováním"]
[]
["Ceník KaM"]
["Krátkodobý pronájem za lůžko",null,"Denní sazba v Kč "]
["Budova",null,"obsazeno     1 osobou","obsazeno    2 a více osobami"]
["K1 - K3 ",null,"-",110]
["K4-K6",null,"-",130]
["Bobík",null,290,180]
[]
["Dlouhodobý pronájem  za lůžko - nejméně nž 3 týdny",null,"Denní sazba v Kč ",null,"Měsíční sazba v Kč "]
["Budova","druh pokoje","obsazeno    1 osobou","obsazeno    2 a více osobami","obsazeno 1 osobou","obsazeno    2 a více osobami"]
["K1 - K3 ","dvoulůžkový",100,80,3000,1800]
["K4-K6, Bobík","dvoulůžkový",125,95,3750,2100]
["K5-K6, Bobík ","třílůžkový",125,90,3750,1980]
["K6 ","jednolůžkový","-",115,"-",2500]
["Bobík","jednolůžkový","-",125,"-",3750]

{"sheet":"překlady a tlumočení","index":7,"n_rows":10,"n_cols":2,"rows_kept":10,"cut":false,"hidden":false,"merged":[]}
[null,"Příloha č. 8"]
[]
["Kalkulace nákladů spojených s překladatelské a tlumočnické služby"]
[null,"v Kč"]
["průměrné osobní náklady na 1 hodinu práce pracovníka ",200]
["doba překladu 1 normostrany","1h"]
[]
["cena 1 normostrany",{"$f":"B5","v":200}]
["cena 1 normostrany vč. korektury rodilým mluvčím",{"$f":"B5+0.5*B5","v":300}]
["tlumočení 1 hodina",{"$f":"B5","v":200}]

{"sheet":"Pracovní výkaz ","index":8,"n_rows":44,"n_cols":14,"rows_kept":44,"cut":false,"hidden":false,"merged":[[0,0,0,12],[20,10,20,12],[21,10,21,12],[22,10,22,12],[16,10,16,12],[9,0,9,3],[9,4,9,12],[1,0,2,12],[3,0,3,12],[4,0,4,12],[5,0,5,3],[5,4,5,12],[6,0,6,3],[6,4,6,12],[7,0,7,3],[7,4,7,12],[8,0,8,12],[16,1,16,2],[16,3,16,6],[16,8,16,9],[10,0,10,3],[10,4,10,12],[11,0,11,3],[11,4,11,12],[12,0,12,3],[12,4,12,12],[14,0,14,12],[15,1,15,2],[15,3,15,6],[15,8,15,9],[15,10,15,13],[17,1,17,2],[17,3,17,6],[17,8,17,9],[17,10,17,12],[18,1,18,2],[18,3,18,6],[18,8,18,9],[18,10,18,12],[19,1,19,2],[19,3,19,6],[19,8,19,9],[19,10,19,12],[20,1,20,2],[20,3,20,6],[20,8,20,9],[21,1,21,2],[21,3,21,6],[21,8,21,9],[22,1,22,2],[22,3,22,6],[22,8,22,9],[23,10,23,12],[24,10,24,12],[25,1,25,2],[25,3,25,6],[25,8,25,9],[23,1,23,2],[23,3,23,6],[23,8,23,9],[24,1,24,2],[24,3,24,6],[24,8,24,9],[26,1,26,2],[26,3,26,6],[26,8,26,9],[26,10,26,12],[25,10,25,12],[27,1,27,2],[27,3,27,6],[27,8,27,9],[27,10,27,12],[28,1,28,2],[28,3,28,6],[28,8,28,9],[28,10,28,12],[30,10,30,13],[29,10,29,12],[32,9,32,11],[34,2,34,4],[34,5,34,6],[34,7,34,8],[34,10,34,11],[29,1,29,2],[29,3,29,6],[29,8,29,9],[30,1,30,2],[30,3,30,6],[30,8,30,9],[40,3,40,8],[35,10,35,11],[35,2,35,4],[35,5,35,6],[35,7,35,8],[39,3,39,8],[38,3,38,8]]}
["Příloha č. 9"]
["Pracovní výkaz pro vykázání režijních osobních nákladů na projekt"]
[]
[]
[null,null,null,null,null,null,null,null,null,null,null,null,null,"          "]
["Registrační číslo projektu"]
["Název projektu"]
["Příjemce",null,null,null,"Jihočeská univerzita v Českých Budějovicích"]
[]
["Jméno a příjmení"]
["oddělení JU"]
["Pracovní zařazení dle bodu a) metodiky"]
["Období"]
[]
["Přehled měsíčních pracovních činností "]
["datum","Počet odprac. hodin",null,"Popis vykonaných aktivit",null,null,null,"datum","Počet odprac. hodin",null,"Popis vykonaných aktivit"]
[]
[]
[]
[]
[]
[]
[]
[]
[]
[]
[]
[]
[]
[]
["Počet hodin",{"$f":"SUM(B17:C30)","v":0},null,null,null,null,null,"Počet hodin celkem",{"$f":"SUM(I17:J30)","v":0}]
[]
["Součet hodin souvisejících s projektem",null,null,null,null,null,null,null,null,{"$f":"SUM(B31,I31)","v":0},null,null,"hodin"]
[]
[null,"Datum:","Jméno a příjmení:",null,null,"Podpis:",null,"Kontroloval:",null,"Datum:","Jméno a příjmení:",null,"Podpis:"]
["Vypracoval:"]
[]
["Přeúčtování nákladů:"]
[null,"NS","TA","název akce v iFIS",null,null,null,null,null,"KP"]
["z akce"]
["na projekt"]
[]
[]
["Vyplňujte pouze bílé buňky"]

{"sheet":"Celkové náklady","index":9,"n_rows":29,"n_cols":12,"rows_kept":29,"cut":false,"hidden":false,"merged":[[28,1,28,3],[28,5,28,9],[24,2,24,3],[24,4,24,10],[26,1,26,3],[26,5,26,9],[27,1,27,3],[27,5,27,9],[18,4,18,10],[19,4,19,10],[20,4,20,10],[21,4,21,10],[23,2,23,3],[23,4,23,10],[5,0,5,1],[5,2,5,10],[17,4,17,10],[6,0,6,1],[6,2,6,10],[8,4,8,10],[9,4,9,10],[10,4,10,10],[11,4,11,10],[12,4,12,10],[13,4,13,10],[14,4,14,10],[15,4,15,10],[16,4,16,10],[1,0,1,10],[3,0,3,1],[3,2,3,10],[4,0,4,1],[4,2,4,10]]}
[null,null,null,null,null,null,null,null,null,null,null,"Příloha č. 10"]
["Celkové režijní náklady bez nákladů na odměňování pracovníků"]
[]
["Registrační číslo projektu"]
["Název projektu"]
["Období"]
["Fakulta"]
[]
["Kalkulace celkových režijních nákladů bez osobních"]
["položka","Počet","cena za jednotku","celkem","poznámka"]
[]
[]
[]
[]
[]
[]
[]
[]
[]
[]
[]
["celkem",null,null,{"$f":"SUM(D11:D21)","v":0}]
[]
[null,"Datum","Jméno a příjmení",null,"Podpis"]
["Vypracoval"]
[]
["Přeúčtování","název akce v IFIS",null,null,"TA","KP",null,null,null,null,"NS"]
["akce"]
["na projekt"]